Workbook

Sheet Instrukcja wypełniania DPAE
A1: INSTRUKCJA WYPEŁNIANIA DOKUMENTU PODSUMOWUJĄCEGO AUDYT ENERGETYCZNY DOKUMENT POMOCNICZY DLA AUDYTORÓW ENERGETYCZNYCH W RAMACH PROGRAMU PRIORYTETOWEGO CIEPŁE MIESZKANIE
A2: 1. | B2: W Dokumencie należy wypełniać jedynie pola w kolorze białym, z wyjątkiem sytuacji opisanych poniżej w pkt 5.3 poniżej (pola w kolorze jasnożółtym lub jasnozielonym).
A3: 2. | B3: Pola w odcieniach szarości, a także pola w kolorze żółtym i zielonym zawierające jednostki nie powinny być wypełniane.
A4: 3. | B4: Sekcja I Dane o budynku mieszkalnym / lokalu mieszkalnym
A5: 3.1 | B5: W sekcji należy podać dane dot. budynku / lokalu mieszkalnego.
A6: 4. | B6: W sekcji II. Zakres rzeczowy wchodzący w skład wariantu optymalnego z audytu energetycznego (wariantu wybranego do realizacji przez audytora) należy wpisywać przedsięwzięcia/ulepszenia/usprawnienia wskazane do realizacji w wariancie optymalnym. Przedsięwzięcia te powinny być ujęte w sposób skrótowy/hasłowy, a jednocześnie powinny umożliwiać w prosty sposób ich weryfikację z pojęciami wpisanymi do audytu energetycznego, np.: modernizacja systemu grzewczego i systemu przygotowania ciepłej wody użytkowej w odniesieniu do kosztów kwalifikowanych Programu. W przypadku ocieplenia przegród budowlanych należy podać wartość współczynnika przenikania ciepła przegrody U przed termomodernizacją i po termomodernizacji. W pozostałych przypadkach należy wpisać "nie dotyczy". Jeżeli w audycie energetycznym znajduje się więcej pozycji z zakresu rzeczowego przedsięwzięcia jak wierszy w niniejszym Dokumencie podsumowującym audyt energetyczny, kolejne pozycje należy dodawać w jednym wierszu, co można zrobić przez użycie skrótu klawiszowego ALT+ENTER w oknie komórki.
A7: 4.1 | B7: Jeżeli audyt energetyczny uwzględnia instalację kolektorów słonecznych lub fotowoltaiki należy podać odpowiednio powierzchnię/moc instalacji.
A8: 5. | B8: Sekcja III. Wskaźniki rocznego zapotrzebowania na ciepło do ogrzewania budynku
A9: 5.1 | B9: Należy podać główne źródło ciepła / dominujące źródło ciepła wykorzystywane na potrzeby ogrzewania przed termomodernizacją i po termomodernizacji - źródło należy wybrać z listy rozwijanej. Jeżeli w budynku znajduje się wiecej niż jedno źródeł ciepła, należy podać źródło, które jest wykorzystywane do ogrzewania największej powierzchni budynku. Jeżeli przedsięwzięcie nie obejmuje wymiany źródła ciepła w polu "przed termomodernizacją" należy wybrać właściwe źródło ciepła a w polu "po termomodernizacji" należy wybrać: "Nie obejmowało wymiany źródła ciepła".
A10: 5.2 | B10: Następnie należy podać wskaźnik rocznego zapotrzebowania na ciepło do ogrzewania budynku (z uwzględnienieniem sprawności systemu grzewczego i przerw w ogrzewaniu) [kWh/(m2*rok)] przed termomodernizacją i po termomodernizacji.
A11: 5.3 | B11: Następnie należy odpowiedzić na pytania: Czy wartość redukcji emisji PM10/BaP/CO2 zostały wyliczone w audycie energetycznym. Jeżeli w ramach audytu energetycznego zostały obliczone te wartości - należy je wpisać odpowiednio w pola E34, E35 lub E36. W przeciwnym wypadku wartości zostaną wyliczone automatycznie.
A12: 6. | B12: Sekcja IV. Wyliczenie efektów energetycznych i ekologicznych
A13: 6.1 | B13: W tej sekcji wartości wyliczane są automatycznie.
A15: 7. | B15: W sekcji V. Oświadczenia Audytora należy wpisać datę przekazania audytu energetycznego Beneficjentowi.
A16: 8. | B16: W sekcji VI. Uwagi, komentarze, podpis Audytor ma możliwość zamieszczenia dodatkowych informacji dla Beneficjenta, Gminy lub wojewódzkich funduszy ochrony środowiska i gospodarki wodnej.
A17: 9. | B17: W sekcji VI. Uwagi, komentarze, podpis wymagany jest podpis Audytora. W sytuacji gdy Audytor podpisuje Dokument elektronicznie, w polu tym należy wpisać imię i nazwisko Audytora oraz dodać "PODPISANY ELEKTRONICZNIE". Następnie Dokument należy podpisać elektronicznie. W innym przypadku należy wydrukować Dokument i podpisać go ręcznie.
A19: 10. | B19: Do wniosku o płatność należy załączyć Dokument podsumowujący audyt energetyczny w wersji edytowalnej oraz w wersji podpisanej - np. jako skan podpisanego dokumentu, plik pdf podpisany elektronicznie, plik typu .zip z plikami podpisanymi i plikami podpisu.
A20: Wersja 1.0

Sheet DPAE
A1: DOKUMENT PODSUMOWUJĄCY AUDYT ENERGETYCZNY PODSUMOWANIE OBLICZEŃ AUDYTOWYCH Z WYLICZENIEM EFEKTÓW ENERGETYCZNYCH I EKOLOGICZNYCH DOKUMENT POMOCNICZY DLA AUDYTORÓW ENERGETYCZNYCH W RAMACH PROGRAMU PRIORYTETOWEGO CIEPŁE MIESZKANIE Niniejszy dokument nie stanowi audytu energetycznego, a jest jedynie jego podsumowaniem. Oryginalny audyt energetyczny powinien być przechowywany przez Beneficjenta końcowego i udostępniany do kontroli przez Gminę lub Wojewódzki Fundusz Ochrony Środowiska i Gospodarki Wodnej właściwy ze względu na lokalizację budynku/lokalu mieszkalnego, którego dotyczy, lub przez inny podmiot wskazany w umowie dotacji.
A2: I. Dane o budynku mieszkalnym wielorodzinnym
E3: Kod pocztowy | G3: Miejscowość
A4: Adres budynku wielorodzinnego mieszkalnego | E4: Ulica
E5: Nr budynku | G5: Liczba lokali w budynku
A6: Powierzchnia użytkowa budynku | H6: m2
A7: II. Zakres rzeczowy wchodzący w skład wariantu optymalnego z audytu energetycznego (wariantu wybranego do realizacji przez audytora) 1)
B8: Nazwa | H8: Współczynnik przenikania ciepła przegrody U przed termomodernizacją | I8: Współczynnik przenikania ciepła przegrody U po termomodernizacji
A9: 1. | B9: Np. Modernizacja systemu grzewczego i systemu przygotowania ciepłej wody użytkowej | H9: Nie dotyczy | I9: Nie dotyczy
A10: 2. | B10: Np. Modernizacja przegrody ściana zewnętrzna piwnica i parter | H10: Np. 0,999 | I10: Np. 0,111
A11: 3. | B11: Np. Wymiana okien | H11: Np. 9,999 | I11: Np. 0,111
A12: 4.
A13: 5.
A14: 6.
A15: 7.
A16: 8.
A17: 9.
A18: 10.
A19: Odnawialne Źródła Energii (OZE) - jeśli dotyczy:
A20: 1. | B20: Kolektory słoneczne o powierzchni: | I20: m2
A21: 2. | B21: Instalacja fotowoltaiczna (PV) o mocy: | I21: kWp
A22: III. Wskaźniki rocznego zapotrzebowania na ciepło do ogrzewania budynku i redukcji niektórych emisji - zgodnie z audytem energetycznym
E23: Przed termomodernizacją: | G23: Po termomodernizacji: | I23: Redukcja w [%]
E24: Wartość | F24: Jednostka | G24: Wartość | H24: Jednostka
A25: 1. | B25: Główne źródło ciepła / Dominujące źródło ciepła2) | J25: =AND(G25='Dane do przeliczeń'!$C$16,E25='Dane do przeliczeń'!$C$4) -> FALSE | K25: =AND(E25<>'Dane do przeliczeń'!$C$4,G25<>'Dane do przeliczeń'!$C$16) -> TRUE | L25: =OR(AND(E25<>0,G25=0),AND(E25=0,G25<>0)) -> FALSE
A26: 2. | B26: Wskaźnik rocznego zapotrzebowania na ciepło do ogrzewania budynku (z uwzględnieniem sprawności systemu grzewczego i przerw w ogrzewaniu)3) | F26: kWh/(m2*rok) | H26: kWh/(m2*rok) | I26: =IF(E26="","",IF(G26="","",ROUND((E26-G26)/E26,4))) -> 
B27: Wskaźnik rocznego zapotrzebowania na nieodnawialną energię pierwotną do ogrzewania budynku | E27: =IF(E25="","Podaj główne źródło ciepła - powyżej",IF(OR(AND(E25<>'Dane do przeliczeń'!$C$4,G25<>'Dane do przeliczeń'!$C$16),(AND(E25='Dane do przeliczeń'!$C$4,G25='Dane do przeliczeń'!$C$16))),"Błąd - przedsięwzięcie niezgodne z PPCM",IF(E26="","Należy uzupełnić pole dla EK - powyżej",E26*(VLOOKUP(E25,'Dane do przeliczeń'!$C$27:$L$34,4,FALSE))))) -> Podaj główne źródło ciepła - powyżej | F27: kWh/(m2*rok) | G27: =IF(G25="","Podaj główne źródło ciepła - powyżej",IF(OR(AND(E25<>'Dane do przeliczeń'!$C$4,G25<>'Dane do przeliczeń'!$C$16),(AND(E25='Dane do przeliczeń'!$C$4,G25='Dane do przeliczeń'!$C$16))),"Błąd - przedsięwzięcie niezgodne z PPCM",IF(G26="","Należy uzupełnić pole dla EK - powyżej",IF(G25='Dane do przeliczeń'!$C$16,G26*(VLOOKUP(E25,'Dane do przeliczeń'!$C$27:$L$34,4,FALSE)),IF(OR($G$25='Dane do przeliczeń'!$C$6,$G$25='Dane do przeliczeń'!$C$7,$G$25='Dane do przeliczeń'!$C$8,$G$25='Dane do przeliczeń'!$C$9),MAX(0,G26*(VLOOKUP(G25,'Dane do przeliczeń'!$C$4:$L$16,4,FALSE))-($H$21*750/$E$6)),G26*(VLOOKUP(G25,'Dane do przeliczeń'!$C$4:$L$16,4,FALSE))))))) -> Podaj główne źródło ciepła - powyżej | H27: kWh/(m2*rok) | I27: =IF(OR(E25="",G25=""),"",IF(OR(E25="",G25=""),"",IF(OR(AND(E25<>'Dane do przeliczeń'!$C$4,G25<>'Dane do przeliczeń'!$C$16),(AND(E25='Dane do przeliczeń'!$C$4,G25='Dane do przeliczeń'!$C$16))),"Błąd - przedsięwzięcie niezgodne z PPCM",IF(OR(E27="",E27="Należy TUTAJ wpisać wartość z audytu"),"",IF(G27=0,"0%",IFERROR(ROUND((E27-G27)/E27,4),"")))))) -> 
A28: 3. | B28: Emisja pyłu PM10 | C28: Czy wartość została obliczona w audycie energetycznym? | E28: =IF(D28="","",IF(D28="TAK","Należy TUTAJ wpisać wartość z audytu",IF(E25="","Podaj główne źródło ciepła - powyżej",IF(OR(AND(E25<>'Dane do przeliczeń'!$C$4,G25<>'Dane do przeliczeń'!$C$16),(AND(E25='Dane do przeliczeń'!$C$4,G25='Dane do przeliczeń'!$C$16))),"Błąd - przedsięwzięcie niezgodne z PPCM",IF(OR(E27="",E27="Należy TUTAJ wpisać wartość z audytu"),"Należy uzupełnić pola dla EP - powyżej",IF(E27="Należy uzupełnić pole dla EK - powyżej","Należy uzupełnić pole dla EK - powyżej",IF(E27="Podaj główne źródło ciepła - powyżej","Podaj główne źródło ciepła - powyżej",(E27*$E$6/1000*(VLOOKUP(E25,'Dane do przeliczeń'!$C$27:$L$34,9,FALSE)))))))))) ->  | F28: g/rok | G28: =IF(D28="","",IF(D28="TAK","Należy TUTAJ wpisać wartość z audytu",IF(G25="","Podaj główne źródło ciepła - powyżej",IF(OR(AND(E25<>'Dane do przeliczeń'!$C$4,G25<>'Dane do przeliczeń'!$C$16),(AND(E25='Dane do przeliczeń'!$C$4,G25='Dane do przeliczeń'!$C$16))),"Błąd - przedsięwzięcie niezgodne z PPCM",IF(OR(G27="",G27="Należy TUTAJ wpisać wartość z audytu"),"Należy uzupełnić pola dla EP - powyżej",IF(G27="Należy uzupełnić pole dla EK - powyżej","Należy uzupełnić pole dla EK - powyżej",IF(G27="Podaj główne źródło ciepła - powyżej","Podaj główne źródło ciepła - powyżej",(G27*$E$6/1000*(IF(G25='Dane do przeliczeń'!$C$16,(VLOOKUP(E25,'Dane do przeliczeń'!$C$27:$L$34,9,FALSE)),(VLOOKUP(G25,'Dane do przeliczeń'!$C$4:$L$16,9,FALSE)))))))))))) ->  | H28: g/rok | I28: =IF(OR(E25="",G25=""),"",IF(OR(AND(E25<>'Dane do przeliczeń'!$C$4,G25<>'Dane do przeliczeń'!$C$16),(AND(E25='Dane do przeliczeń'!$C$4,G25='Dane do przeliczeń'!$C$16))),"Błąd - przedsięwzięcie niezgodne z PPCM",IF(OR(E28="",E28="Należy TUTAJ wpisać wartość z audytu",E28="Należy uzupełnić wartość EP powyżej"),"",IF(AND(E28=0,G28=0),0,IFERROR(ROUND((E28-G28)/E28,4),""))))) -> 
A29: 4. | B29: Emisja benzo(a)pirenu | C29: Czy wartość została obliczona w audycie energetycznym? | E29: =IF(D29="","",IF(D29="TAK","Należy TUTAJ wpisać wartość z audytu",IF(E25="","Podaj główne źródło ciepła - powyżej",IF(OR(AND(E25<>'Dane do przeliczeń'!$C$4,G25<>'Dane do przeliczeń'!$C$16),(AND(E25='Dane do przeliczeń'!$C$4,G25='Dane do przeliczeń'!$C$16))),"Błąd - przedsięwzięcie niezgodne z PPCM",IF(OR(E27="",E27="Należy TUTAJ wpisać wartość z audytu"),"Należy uzupełnić pola dla EP - powyżej",IF(E27="Należy uzupełnić pole dla EK - powyżej","Należy uzupełnić pole dla EK - powyżej",IF(E27="Podaj główne źródło ciepła - powyżej","Podaj główne źródło ciepła - powyżej",(E27*$E$6/1000*(VLOOKUP(E25,'Dane do przeliczeń'!$C$27:$L$34,10,FALSE)))))))))) ->  | F29: g/rok | G29: =IF(D29="","",IF(D29="TAK","Należy TUTAJ wpisać wartość z audytu",IF(G25="","Podaj główne źródło ciepła - powyżej",IF(OR(AND(E25<>'Dane do przeliczeń'!$C$4,G25<>'Dane do przeliczeń'!$C$16),(AND(E25='Dane do przeliczeń'!$C$4,G25='Dane do przeliczeń'!$C$16))),"Błąd - przedsięwzięcie niezgodne z PPCM",IF(OR(G27="",G27="Należy TUTAJ wpisać wartość z audytu"),"Należy uzupełnić pola dla EP - powyżej",IF(G27="Należy uzupełnić pole dla EK - powyżej","Należy uzupełnić pole dla EK - powyżej",IF(G27="Podaj główne źródło ciepła - powyżej","Podaj główne źródło ciepła - powyżej",(G27*$E$6/1000*((IF(G25='Dane do przeliczeń'!$C$16,(VLOOKUP(E25,'Dane do przeliczeń'!$C$27:$L$34,10,FALSE)),(VLOOKUP(G25,'Dane do przeliczeń'!$C$4:$L$16,10,FALSE))))))))))))) ->  | H29: g/rok | I29: =IF(OR(E25="",G25=""),"",IF(OR(AND(E25<>'Dane do przeliczeń'!$C$4,G25<>'Dane do przeliczeń'!$C$16),(AND(E25='Dane do przeliczeń'!$C$4,G25='Dane do przeliczeń'!$C$16))),"Błąd - przedsięwzięcie niezgodne z PPCM",IF(OR(E29="",E29="Należy TUTAJ wpisać wartość z audytu",E29="Należy uzupełnić wartość EP powyżej"),"",IF(AND(E29=0,G29=0),0,IFERROR(ROUND((E29-G29)/E29,4),""))))) -> 
A30: 5. | B30: Emisja CO2 | C30: Czy wartość została obliczona w audycie energetycznym? | E30: =IF(D30="","",IF(D30="TAK","Należy TUTAJ wpisać wartość z audytu",IF(E25="","Podaj główne źródło ciepła - powyżej",IF(OR(AND(E25<>'Dane do przeliczeń'!$C$4,G25<>'Dane do przeliczeń'!$C$16),(AND(E25='Dane do przeliczeń'!$C$4,G25='Dane do przeliczeń'!$C$16))),"Błąd - przedsięwzięcie niezgodne z PPCM",IF(E26="","Należy uzupełnić pole dla EK - powyżej",(E26*$E$6/1000*(VLOOKUP(E25,'Dane do przeliczeń'!$C$27:$L$34,8,FALSE)))))))) ->  | F30: kg/rok | G30: =IF(D30="","",IF(D30="TAK","Należy TUTAJ wpisać wartość z audytu",IF(G25="","Podaj główne źródło ciepła - powyżej",IF(OR(AND(E25<>'Dane do przeliczeń'!$C$4,G25<>'Dane do przeliczeń'!$C$16),(AND(E25='Dane do przeliczeń'!$C$4,G25='Dane do przeliczeń'!$C$16))),"Błąd - przedsięwzięcie niezgodne z PPCM",IF(G26="","Należy uzupełnić pole dla EK - powyżej",MAX(G26*$E$6/1000*(IF(G25='Dane do przeliczeń'!$C$16,(VLOOKUP(E25,'Dane do przeliczeń'!$C$27:$L$34,8,FALSE)),(VLOOKUP(G25,'Dane do przeliczeń'!$C$4:$L$16,8,FALSE))))-($H$21*750/10^3*'Dane do przeliczeń'!J15),0)))))) ->  | H30: kg/rok | I30: =IF(OR(E25="",G25=""),"",IF(OR(AND(E25<>'Dane do przeliczeń'!$C$4,G25<>'Dane do przeliczeń'!$C$16),(AND(E25='Dane do przeliczeń'!$C$4,G25='Dane do przeliczeń'!$C$16))),"Błąd - przedsięwzięcie niezgodne z PPCM",IF(OR(E30="",E30="Należy TUTAJ wpisać wartość z audytu",E30="Należy uzupełnić wartość EP powyżej"),"",IF(AND(E29=0,G29=0),"0%",IFERROR(ROUND((E30-G30)/E30,4),""))))) -> 
A31: IV. Wyliczenie efektów ekologicznych4)
H32: Wartość | I32: Jednostka
A33: 1. | B33: Ograniczenie zużycia energii końcowej | H33: =IF(OR(E26="",G26=""),"",IFERROR((E26-G26)*E6/10^3,"")) ->  | I33: MWh/rok
B34: Ograniczenie zużycia energii pierwotnej | H34: =IFERROR((E27-G27)*E6/10^3,"") ->  | I34: MWh/rok
A35: 2. | B35: Ograniczenie emisji pyłu PM10 | H35: =IFERROR((E28-G28)/10^6,"") ->  | I35: Mg/rok
A36: 3. | B36: Ograniczenie emisji benzo(a)pirenu | H36: =IFERROR((E29-G29)/10^6,"") ->  | I36: Mg/rok
A37: 4. | B37: Zmniejszenie emisji CO2 | H37: =IFERROR((E30-G30)/10^3,"") ->  | I37: Mg/rok
A38: 5. | B38: Dodatkowa zdolność wytwarzania energii elektrycznej z zainstalowanych mikroinstalacji fotowoltaicznych5) | H38: =IF(H21="","",IFERROR(H21/1000,"")) ->  | I38: MWe
A39: V. Oświadczenia Audytora
A40: 1. | B40: Oświadczam, że wykonałem/wykonałam audyt energetyczny dotyczący budynku mieszkalnegowskazanego w części I niniejszego Dokumentu i przekazałem/przekazałam go Beneficjentowi w dniu:
A41: 2. 3. | B41: Oświadczam, że dane wpisane w niniejszym Dokumencie podsumowującym audyt energetyczny są zgodne z audytem energetycznym, o którym mowa w Oświadczeniu nr 1. Oświadczam, że w ramach audytu energetycznego wykonałem/wykonałam inwentaryzację techniczno-budowlaną budynku oraz wynikającą z niej ocenę stanu technicznego budynku w zakresie istotnym dla wskazania właściwych ulepszeń i przedsięwzięć termomodernizacyjnych.
A42: VI. Uwagi, komentarze, podpis
A43: Uwagi/komentarze: | E43: Imię, nazwisko, data i podpis Audytora:
A47: Objaśnienia
A48: 1) W tabeli należy wpisać rodzaje zadań (ulepszeń, usprawnień) wskazanych przez audytora do realizacji na podstawie wariantu optymalnego
A49: 2) Jeżeli w budynku znajduje się wiecej niż jedno źródeł ciepła, należy podać źródło, które jest wykorzystywane do ogrzewania największej powierzchni budynku. 3) Zgodnie z pozycją 6.9 w Tabeli 2. Karta audytu energetycznego budynku w Załączniku nr 1 do Rozporządzenia (Dz. U. 2009 nr 43 poz. 346 z późn. zm.)
A50: 4) Wyliczenie efektów ekologicznych na podstawie danych wprowadzonych w pkt III. 5) Rozumiane jako moc zainstalowanych mikroinstalacji fotowoltaicznych.

Sheet Dane do przeliczeń
A1: Przedsięwzięcie dot. źródła ciepła | B1: Lp. | C1: Źródło ciepła | D1: paliwo: | E1: uśredniona sezonowa sprawność źródła ciepła 1) | F1: współczynnik nakładu nieodnawialnej energii pierwotnej 2) | G1: Wskaźniki emisji zanieczyszczeń - przeliczone na GJ | J1: Wskaźniki emisji zanieczyszczeń - przeliczenie na MWh (do sporządzenia obliczeń metodą wskaźnikową)
G2: CO2 3) | H2: PM10 4) | I2: BaP 4) | J2: CO2 | K2: PM10 | L2: BaP
G3: kg/GJ | H3: g/GJ | I3: g/GJ | J3: kg/MWh | K3: g/MWh | L3: g/MWh
A4: Stary piec: | B4: 0 | C4: Istniejące nieefektywne źródło ciepła na paliwo stałe - "kopciuch" | D4: paliwo stałe | E4: 0.65 | F4: 1.1 | G4: 94.730 | H4: 427.000 | I4: 0.280 | J4: =G4*3.6 -> 341.028 | K4: =H4*3.6 -> 1,537.200 | L4: 1.008
A5: Wymiana żródła ciepła na żródło zgodne z Programem Czyste Powietrze: | B5: 1 | C5: Podłączenie do sieci ciepłowniczej wraz z przyłączem | D5: sieć ciepłownicza | E5: 0.95 | F5: 1.1 | G5: 93.540 | J5: =G5*3.6 -> 336.744
B6: 2 | C6: Pompa ciepła powietrze/woda | D6: energia elektryczna | E6: 3.5 | F6: 2.5 | G6: =J6/3.6 -> 196.667 | J6: 708.000
B7: 3 | C7: Pompa ciepła powietrze/woda o podwyższonej klasie efektywności energetycznej | D7: energia elektryczna | E7: 3.5 | F7: 2.5 | G7: =J7/3.6 -> 196.667 | J7: 708.000
B8: 4 | C8: Pompa ciepła typu powietrze/powietrze | D8: energia elektryczna | E8: 3.5 | F8: 2.5 | G8: =J8/3.6 -> 196.667 | J8: 708.000
B9: 5 | C9: Gruntowa pompa ciepła o podwyższonej klasie efektywności energetycznej | D9: energia elektryczna | E9: 3.5 | F9: 2.5 | G9: =J9/3.6 -> 196.667 | J9: 708.000
B10: 6 | C10: Kocioł gazowy kondensacyjny | D10: gaz ziemny | E10: 0.95 | F10: 1.1 | G10: 55.480 | H10: 0.300 | J10: =G10*3.6 -> 199.728 | K10: 1.080
B11: 7 | C11: Kotłownia gazowa (w tym: przyłącze gazowe i instalacja) | D11: gaz ziemny | E11: 0.95 | F11: 1.1 | G11: 55.480 | H11: 0.300 | J11: 199.728 | K11: 1.080
B12: 8 | C12: Kocioł olejowy kondensacyjny | D12: olej opałowy | E12: 0.95 | F12: 1.1 | G12: 77.750 | H12: 2.000 | I12: =0.12/1000 -> 0.000120 | J12: 279.900 | K12: 7.200 | L12: =I12*3.6 -> 0.000432
B13: 9 | C13: Kocioł zgazowujący drewno o podwyższonym standardzie | D13: biomasa | E13: 0.85 | F13: 0.2 | G13: 112.000 | H13: 16.000 | J13: 0.000 | K13: =H13*3.6 -> 57.600
B14: 10 | C14: Kocioł na pellet drzewny o podwyższonym standardzie | D14: biomasa | E14: 0.85 | F14: 0.2 | G14: 112.000 | H14: 16.000 | J14: 0.000 | K14: 57.600
B15: 11 | C15: Ogrzewanie elektryczne | D15: energia elektryczna | E15: 0.95 | F15: 2.5 | G15: =J15/3.6 -> 196.667 | J15: 708.000
A16: Brak wymiany źródła | B16: 0 | C16: Nie obejmowało wymiany źródła ciepła
B17: 9 | C17: Kocioł na węgiel z automatycznym podajnikiem | D17: paliwo stałe | E17: 0.85 | F17: 1.1 | G17: 94.730 | H17: 18.000 | J17: =G17*3.6 -> 341.028 | K17: =H17*3.6 -> 64.800
A18: 1) | B18: Na podstawie dostępnej literatury
A19: 2) | B19: Zgodnie z Rozporządzeniem Ministra Infrastruktury i Rozwoju z dnia 27 lutego 2015 r. w sprawie metodologii wyznaczania charakterystyki energetycznej budynku lub części budynku oraz świadectw charakterystyki energetycznej.
A20: 3) | B20: Zgodnie z opracowaniem KOBIZE: "Wartości opałowe (WO) i wskaźniki emisji CO2 (WE) w roku 2020 do raportowania w ramach Systemu Handlu Uprawnieniami do Emisji za rok 2023" z grudnia 2022 r. lub WSKAŹNIKI EMISYJNOŚCI CO2, SO2, NOx, CO i pyłu całkowitego DLA ENERGII ELEKTRYCZNEJ na podstawie informacji zawartych w Krajowej bazie o emisjach gazów cieplarnianych i innych substancji za 2020 rok
A21: 4) | B21: Zgodnie z zestawienie tabelarycznym Wskaźniki emisji zanieczyszczeń powietrza emitowanych z indywidualnych źródeł ciepła opracowane przez Instytut Chemicznej Przeróbki Węgla (wartości wskaźników zostały zaktualizowane w związku z pracą zrealizowaną przez Instytut Chemicznej Przeróbki Węgla na zlecenie IOŚ-PIB KOBiZE. Aktualizacja dokonywana w zależności od zmian prawnych i gospodarczych). (dane dla pozycji: 8, 21, 22, 33,34) Dane na dzień: 23 czerwca 2021. Dostęp: https://dane.gov.pl/pl/dataset/2182/resource/31256/table
A23: TAK
A24: NIE | C24: Źródło przed termo | D24: paliwo: | E24: uśredniona sezonowa sprawność źródła ciepła 1) | F24: współczynnik nakładu nieodnawialnej energii pierwotnej 2) | G24: Wskaźniki emisji zanieczyszczeń - przeliczone na GJ | J24: Wskaźniki emisji zanieczyszczeń - przeliczenie na MWh (do sporządzenia obliczeń metodą wskaźnikową)
G25: CO2 3) | H25: PM10 4) | I25: BaP 4) | J25: CO2 | K25: PM10 | L25: BaP
G26: kg/GJ | H26: g/GJ | I26: g/GJ | J26: kg/MWh | K26: g/MWh | L26: g/MWh
C27: =C4 -> Istniejące nieefektywne źródło ciepła na paliwo stałe - "kopciuch" | D27: =VLOOKUP($C27,$C$4:$L$17,2,FALSE) -> paliwo stałe | E27: =VLOOKUP($C27,$C$4:$L$17,3,FALSE) -> 0.65 | F27: =VLOOKUP($C27,$C$4:$L$17,4,FALSE) -> 1.1 | G27: =VLOOKUP($C27,$C$4:$L$17,5,FALSE) -> 94.730 | H27: =VLOOKUP($C27,$C$4:$L$17,6,FALSE) -> 427.000 | I27: =VLOOKUP($C27,$C$4:$L$17,7,FALSE) -> 0.280 | J27: =VLOOKUP($C27,$C$4:$L$17,8,FALSE) -> 341.028 | K27: 1,537.000 | L27: =VLOOKUP($C27,$C$4:$L$17,10,FALSE) -> 1.008
C28: Podłączenie do sieci ciepłowniczej | D28: =VLOOKUP(C5,$C$4:$L$17,2,FALSE) -> sieć ciepłownicza | E28: =VLOOKUP(C5,$C$4:$L$17,3,FALSE) -> 0.95 | F28: =VLOOKUP(C5,$C$4:$L$17,4,FALSE) -> 1.1 | G28: =VLOOKUP(C5,$C$4:$L$17,5,FALSE) -> 93.540 | H28: =VLOOKUP(C5,$C$4:$L$17,6,FALSE) -> 0.000 | I28: =VLOOKUP(C5,$C$4:$L$17,7,FALSE) -> 0.000 | J28: =VLOOKUP(C5,$C$4:$L$17,8,FALSE) -> 336.744 | K28: =VLOOKUP(C5,$C$4:$L$17,9,FALSE) -> 0.000 | L28: =VLOOKUP(C5,$C$4:$L$17,10,FALSE) -> 0.000
C29: Pompa ciepła | D29: =VLOOKUP(C6,$C$4:$L$17,2,FALSE) -> energia elektryczna | E29: 3.5 | F29: =VLOOKUP(C6,$C$4:$L$17,4,FALSE) -> 2.5 | G29: =VLOOKUP(C6,$C$4:$L$17,5,FALSE) -> 196.667 | H29: =VLOOKUP(C6,$C$4:$L$17,6,FALSE) -> 0.000 | I29: =VLOOKUP(C6,$C$4:$L$17,7,FALSE) -> 0.000 | J29: =VLOOKUP(C6,$C$4:$L$17,8,FALSE) -> 708.000 | K29: =VLOOKUP(C6,$C$4:$L$17,9,FALSE) -> 0.000 | L29: =VLOOKUP(C6,$C$4:$L$17,10,FALSE) -> 0.000
C30: Kocioł gazowy | D30: =VLOOKUP(C10,$C$4:$L$17,2,FALSE) -> gaz ziemny | E30: =VLOOKUP(C10,$C$4:$L$17,3,FALSE) -> 0.95 | F30: =VLOOKUP(C10,$C$4:$L$17,4,FALSE) -> 1.1 | G30: =VLOOKUP(C10,$C$4:$L$17,5,FALSE) -> 55.480 | H30: =VLOOKUP(C10,$C$4:$L$17,6,FALSE) -> 0.300 | I30: =VLOOKUP(C10,$C$4:$L$17,7,FALSE) -> 0.000 | J30: =VLOOKUP(C10,$C$4:$L$17,8,FALSE) -> 199.728 | K30: =VLOOKUP(C10,$C$4:$L$17,9,FALSE) -> 1.080 | L30: =VLOOKUP(C10,$C$4:$L$17,10,FALSE) -> 0.000
C31: Kocioł olejowy | D31: =VLOOKUP(C12,$C$4:$L$17,2,FALSE) -> olej opałowy | E31: =VLOOKUP(C12,$C$4:$L$17,3,FALSE) -> 0.95 | F31: =VLOOKUP(C12,$C$4:$L$17,4,FALSE) -> 1.1 | G31: =VLOOKUP(C12,$C$4:$L$17,5,FALSE) -> 77.750 | H31: =VLOOKUP(C12,$C$4:$L$17,6,FALSE) -> 2.000 | I31: =VLOOKUP(C12,$C$4:$L$17,7,FALSE) -> 0.000 | J31: =VLOOKUP(C12,$C$4:$L$17,8,FALSE) -> 279.900 | K31: =VLOOKUP(C12,$C$4:$L$17,9,FALSE) -> 7.200 | L31: =VLOOKUP(C12,$C$4:$L$17,10,FALSE) -> 0.000
C32: Kocioł na węgiel minimum 5 klasy | D32: =VLOOKUP(C17,$C$4:$L$17,2,FALSE) -> paliwo stałe | E32: =VLOOKUP(C17,$C$4:$L$17,3,FALSE) -> 0.85 | F32: =VLOOKUP(C17,$C$4:$L$17,4,FALSE) -> 1.1 | G32: =VLOOKUP(C17,$C$4:$L$17,5,FALSE) -> 94.730 | H32: =VLOOKUP(C17,$C$4:$L$17,6,FALSE) -> 18.000 | I32: =VLOOKUP(C17,$C$4:$L$17,7,FALSE) -> 0.000 | J32: =VLOOKUP(C17,$C$4:$L$17,8,FALSE) -> 341.028 | K32: =VLOOKUP(C17,$C$4:$L$17,9,FALSE) -> 64.800 | L32: =VLOOKUP(C17,$C$4:$L$17,10,FALSE) -> 0.000
C33: Kocioł na biomasę minimum 5 klasy | D33: =VLOOKUP(C14,$C$4:$L$17,2,FALSE) -> biomasa | E33: =VLOOKUP(C14,$C$4:$L$17,3,FALSE) -> 0.85 | F33: =VLOOKUP(C14,$C$4:$L$17,4,FALSE) -> 0.2 | G33: =VLOOKUP(C14,$C$4:$L$17,5,FALSE) -> 112.000 | H33: =VLOOKUP(C14,$C$4:$L$17,6,FALSE) -> 16.000 | I33: =VLOOKUP(C14,$C$4:$L$17,7,FALSE) -> 0.000 | J33: =VLOOKUP(C14,$C$4:$L$17,8,FALSE) -> 0.000 | K33: =VLOOKUP(C14,$C$4:$L$17,9,FALSE) -> 57.600 | L33: =VLOOKUP(C14,$C$4:$L$17,10,FALSE) -> 0.000
C34: Ogrzewanie elektryczne | D34: =VLOOKUP($C34,$C$4:$L$17,2,FALSE) -> energia elektryczna | E34: =VLOOKUP($C34,$C$4:$L$17,3,FALSE) -> 0.95 | F34: =VLOOKUP($C34,$C$4:$L$17,4,FALSE) -> 2.5 | G34: =VLOOKUP($C34,$C$4:$L$17,5,FALSE) -> 196.667 | H34: =VLOOKUP($C34,$C$4:$L$17,6,FALSE) -> 0.000 | I34: =VLOOKUP($C34,$C$4:$L$17,7,FALSE) -> 0.000 | J34: =VLOOKUP($C34,$C$4:$L$17,8,FALSE) -> 708.000 | K34: =VLOOKUP($C34,$C$4:$L$17,9,FALSE) -> 0.000 | L34: =VLOOKUP($C34,$C$4:$L$17,10,FALSE) -> 0.000
C36: Nie obejmowało wymiany źródła ciepła
C37: Podłączenie do sieci ciepłowniczej wraz z przyłączem
C38: Pompa ciepła powietrze/woda
C39: Pompa ciepła powietrze/woda o podwyższonej klasie efektywności energetycznej
C40: Pompa ciepła typu powietrze/powietrze
C41: Gruntowa pompa ciepła o podwyższonej klasie efektywności energetycznej
C42: Kocioł gazowy kondensacyjny
C43: Kotłownia gazowa (w tym: przyłącze gazowe i instalacja)
C44: Kocioł olejowy kondensacyjny
C45: Kocioł zgazowujący drewno o podwyższonym standardzie
C46: Kocioł na pellet drzewny o podwyższonym standardzie
C47: Ogrzewanie elektryczne
